fUST/lending_fUST_20240830
["ID","MTS","AMOUNT","RATE_DAILY","PERIOD"]
[336674374,1725009038853,-151.0,0.00034,120]
[336674375,1725009038863,-500.0,0.00034003,7]
[336674376,1725009038872,-500.0,0.00034071,7]
[336674377,1725009038883,-600.0,0.00034173,7]
[336674378,1725009038893,-600.0,0.00034232,7]
[336674379,1725009038902,-500.0,0.00034322,7]
[336674380,1725009038914,-500.0,0.0003446,7]
[336674381,1725009038925,-500.0,0.00034604,7]
[336674382,1725009038934,-151.0,0.00034712,120]
[336674383,1725009038944,-306.65408092,0.00035,10]
[336674384,1725009038954,-600.0,0.00035085,7]
[336674385,1725009038964,-150.0,0.00035112,2]
[336674386,1725009038973,-522.0,0.00035112,2]
[336674387,1725009038983,-150.0,0.00035112,2]
[336674388,1725009038992,-600.0,0.0003528,7]
[336674389,1725009039001,-600.0,0.00035389,7]
[336674390,1725009039011,-600.0,0.0003548,7]
[336674391,1725009039021,-500.0,0.00035499,7]
[336674392,1725009039030,-600.0,0.00035545,7]
[336674393,1725009039040,-200.747233,0.00035616,120]
[336674394,1725009039050,-500.0,0.00035718,7]
[336674395,1725009039060,-500.0,0.00035743,7]
[336674396,1725009039070,-600.0,0.00035756,7]
[336674397,1725009039079,-151.0,0.0003589,120]
[336674398,1725009039090,-151.0,0.00036,120]
[336674399,1725009039100,-600.0,0.00036324,7]
[336674400,1725009039110,-500.0,0.00036379,7]
[336674401,1725009039119,-171.0,0.00036549,2]
[336674402,1725009039130,-597.94205724,0.00036588,2]
[336674403,1725009039140,-20394.46,0.00036649,3]
[336674404,1725009039149,-10321.99611268,0.00036659,3]
[336674405,1725009039169,-4598.2762932,0.00036659,3]
[336674421,1725009040391,-857.84326115,0.00036679,5]
[336674422,1725009040400,-207.16709826,0.00036688,15]
[336674424,1725009040410,-500.0,0.00036688,15]
[336674426,1725009040423,-457.91222009,0.00036688,15]
[336674428,1725009040433,-500.0,0.00036688,15]
[336674430,1725009040442,-500.0,0.00036688,15]
[336674431,1725009040452,-500.0,0.00036688,15]
[336674433,1725009040463,-500.0,0.00036688,15]
[336674435,1725009040472,-22867.38448976,0.00036689,4]
[336674466,1725009050881,-1000.0,0.00032876,2]
[336674467,1725009050892,-1000.0,0.00033424,2]
[336674468,1725009050903,-1000.0,0.00033972,2]
[336674469,1725009050915,-1000.0,0.0003452,2]
[336674470,1725009050927,-379.29849856,0.00035068,2]
[336674471,1725009050939,-940.24783485,0.00036689,4]
[336674472,1725009271698,180.759259,0.00014247,2]
[336674477,1725009546378,167.187307,0.0001863,2]
[336674479,1725009838212,453.50239903,0.0002189,4]
[336674480,1725009884955,1457.26898525,0.0002,11]
[336674484,1725009964914,453.50239903,0.00021781,4]
[336674485,1725009964960,352.20481206,0.00021998,4]
[336674496,1725010122771,10944.91587032,0.00020377,2]
[336674506,1725010205302,167.187307,0.0001863,2]
[336674507,1725010216383,453.45715737,0.00021888,4]
[336674526,1725010232642,-604.60954316,0.00022107,6]
[336674527,1725010232652,-604.60954316,0.00022326,6]
[336674528,1725010232661,-604.60954316,0.00022545,6]
[336674529,1725010232671,-604.60954316,0.00022764,6]
[336674530,1725010232680,-604.60954316,0.00022982,6]
[336674531,1725010232690,-755.76192895,0.00023201,8]
[336674532,1725010232700,-755.76192895,0.0002342,8]
[336674533,1725010232710,-755.76192895,0.00023639,8]
[336674534,1725010232719,-302.9079937,0.00023858,8]
[336674535,1725010232729,-212.69363163,0.00025,2]
[336674536,1725010232744,-10151.30636837,0.00025,2]
[336674537,1725010232758,-258.0,0.00027,2]
[336674538,1725010232771,-500.0,0.00027019,2]
[336674539,1725010232781,-335.4898469,0.00027471,2]
[336674540,1725010232790,-1307.83385283,0.00027471,2]
[336674541,1725010232807,-1692.16614717,0.00027471,2]
[336674542,1725010232818,-192.871326,0.0002748,2]
[336674543,1725010232828,-500.0,0.00027819,2]
[336674544,1725010232839,-500.0,0.00027824,2]
[336674545,1725010232849,-500.0,0.00028396,2]
[336674546,1725010232858,-500.0,0.00028421,2]
[336674547,1725010232867,-500.0,0.00028477,2]
[336674548,1725010232877,-500.0,0.00028711,2]
[336674549,1725010232886,-500.0,0.00029345,2]
[336674550,1725010232895,-500.0,0.00029767,2]
[336674551,1725010232904,-151.0,0.0003,120]
[336674552,1725010232914,-151.0,0.0003,120]
[336674553,1725010232924,-174.0,0.0003,2]
[336674554,1725010232935,-500.0,0.00030002,7]
[336674555,1725010232944,-500.0,0.00030098,7]
[336674556,1725010232953,-500.0,0.00030185,7]
[336674557,1725010232963,-500.0,0.00030618,7]
[336674558,1725010232972,-500.0,0.00030663,7]
[336674559,1725010232982,-500.0,0.0003089,7]
[336674560,1725010232992,-500.0,0.00030925,7]
[336674561,1725010233002,-3032.00736483,0.00031,120]
[336674562,1725010233012,-151.0,0.00031151,120]
[336674563,1725010233022,-699.9281296,0.00031222,2]
[336674564,1725010233032,-15671.95352856,0.000313,2]
[336674565,1725010233042,-500.0,0.00031322,7]
[336674566,1725010233052,-500.0,0.00031557,7]
[336674567,1725010233061,-500.0,0.00031617,7]
[336674568,1725010233081,-16827.82,0.00031695,3]
[336674569,1725010233090,-20193.39,0.00031697,3]
[336674570,1725010233100,-44930.0516848,0.00031705,2]
[336674571,1725010233109,-897.49822705,0.00031707,5]
[336674572,1725010233119,-24232.07,0.00031707,3]
[336674573,1725010233129,-14023.07,0.00031717,3]
[336674574,1725010233138,-1435.83078771,0.00031726,4]
[336674575,1725010233148,-857.84326115,0.00031726,5]
[336674576,1725010233157,-150.0,0.00031727,14]
[336674577,1725010233167,-150.0,0.00031727,14]
[336674578,1725010233177,-200.0,0.00031727,14]
[336674579,1725010233187,-51868.95999158,0.00031727,7]
[336674580,1725010233197,-86302.59164337,0.00031727,2]
[336674581,1725010233207,-16428.9025387,0.00031727,30]
[336674582,1725010233217,-300.0,0.00031727,2]
[336674583,1725010233227,-790.6446827,0.00031727,2]
[336674584,1725010233236,-11250.36656043,0.00031727,32]
[336674585,1725010233245,-298.12586929,0.00031727,2]
[336674586,1725010233255,-23099.5039494,0.00031727,120]
[336674587,1725010233265,-191209.95360526,0.00031727,5]
[336674588,1725010233274,-54714.41684907,0.00031727,2]
[336674589,1725010233284,-2798.39048363,0.00031727,2]
[336674590,1725010233294,-2940.66928994,0.00031727,7]
[336674591,1725010233304,-501.38290317,0.00031727,14]
[336674592,1725010233317,-9921.37014971,0.00031727,4]
[336674593,1725010233326,-516.33,0.000318,14]
[336674594,1725010233335,-9065.02,0.000318,14]
[336674595,1725010233345,-500.0,0.00031827,7]
[336674596,1725010233354,-151.0,0.00032,120]
[336674597,1725010233365,-500.0,0.00032065,7]
[336674598,1725010233374,-500.0,0.0003229,7]
[336674599,1725010233384,-151.0,0.00032301,120]
[336674600,1725010233394,-500.0,0.00032368,7]
[336674601,1725010233403,-500.0,0.00032475,7]
[336674602,1725010233413,-500.0,0.00032499,7]
[336674603,1725010233422,-1622.73190788,0.000329,2]
[336674604,1725010233432,-171.0,0.00033,2]
[336674605,1725010233442,-471.17109386,0.00033,120]
[336674606,1725010233452,-174.0,0.00033,2]
[336674607,1725010233461,-500.0,0.00033273,7]
[336674608,1725010233471,-151.0,0.00033452,120]
[336674609,1725010233480,-522.0,0.00033585,2]
[336674610,1725010233490,-150.0,0.00033585,2]
[336674611,1725010233499,-500.0,0.00033611,7]
[336674612,1725010233509,-69717.3265578,0.0003399,4]
[336674613,1725010233519,-151.0,0.00034,120]
[336674614,1725010233529,-34995.09,0.00034,15]
[336674615,1725010233539,-527.86181787,0.00034,5]
[336674616,1725010233549,-1727.44,0.00034,14]
[336674617,1725010233558,-151.0,0.00034603,120]
[336674618,1725010233569,-500.0,0.00034673,5]
[336674619,1725010233578,-4930.37183905,0.00034726,2]
[336674620,1725010233588,-1292.33404097,0.00034728,12]
[336674621,1725010233597,-27500.64184527,0.000349,2]
[336674622,1725010233608,-19066.3853493,0.000349,2]
[336674623,1725010233617,-500.0,0.00034961,7]
[336674624,1725010233627,-4930.37183905,0.0003497,2]
[336674625,1725010233636,-61438.03606268,0.00034999,3]
[336674626,1725010233645,-151.0,0.00034999,7]
[336674627,1725010233655,-151.0,0.00034999,7]
[336674628,1725010233664,-151.0,0.00034999,7]
[336674629,1725010233674,-2615.855794,0.00034999,7]
[336674630,1725010233683,-2615.855794,0.00034999,7]
[336674631,1725010233693,-151.0,0.00034999,7]
[336674632,1725010233703,-151.0,0.00034999,7]
[336674633,1725010233712,-516.33,0.00035,14]
[336674634,1725010233722,-69717.3265578,0.00035198,4]
[336674635,1725010233731,-9065.02,0.000352,14]
[336674636,1725010233741,-4930.37183905,0.0003523,2]
[336674637,1725010233751,-500.0,0.0003525,7]
[336674638,1725010233765,-4930.37183905,0.00035489,2]
[336674639,1725010233774,-500.69515597,0.00035562,7]
[336674640,1725010233784,-217.47617,0.00035616,120]
[336674641,1725010233794,-4930.37183905,0.00035663,2]
[336674642,1725010233806,-151.0,0.00035753,120]
[336674643,1725010233817,-150.0,0.00035879,2]
[336674644,1725010233826,-151.0,0.00036,120]
[336674645,1725010233837,-174.0,0.00036,2]
[336674646,1725010233846,-500.0,0.0003602,7]
[336674647,1725010233855,-150.0,0.00036084,2]
[336674648,1725010233865,-150.112233,0.000361,10]
[336674649,1725010233874,-4930.37183905,0.00036129,2]
[336674650,1725010233884,-150.0,0.0003622,2]
[336674651,1725010233893,-4930.37183907,0.00036256,2]
[336674652,1725010233903,-627.83916012,0.00036303,2]
[336674653,1725010233912,-500.0,0.00036353,7]
[336674654,1725010233922,-1727.44,0.000364,14]
[336674655,1725010233931,-500.0,0.0003647,7]
[336674656,1725010233942,-252.669945,0.00036539,7]
[336674657,1725010233951,-151.0,0.00036539,7]
[336674658,1725010233961,-151.0,0.00036539,7]
[336674659,1725010233971,-2615.855794,0.00036539,7]
[336674660,1725010233981,-2615.855794,0.00036539,7]
[336674661,1725010233991,-151.0,0.00036539,7]
[336674662,1725010234000,-151.0,0.00036539,7]
[336674663,1725010234010,-69717.3265578,0.00036539,4]
[336674664,1725010234019,-500.0,0.00036549,7]
[336674665,1725010234029,-522.0,0.00036585,2]
[336674666,1725010234039,-150.0,0.00036585,2]
[336674667,1725010234048,-271.72460976,0.00036689,2]
[336674668,1725010234058,-516.33,0.000367,14]
[336674669,1725010234068,-1000.0,0.00036811,2]
[336674670,1725010234078,-627.83916008,0.0003686,2]
[336674671,1725010234088,-151.0,0.00036904,120]
[336674672,1725010234097,-500.0,0.00036912,7]
[336674673,1725010234107,-9065.02,0.00037,14]
[336674674,1725010234118,-150.112233,0.000372,6]
[336674675,1725010234127,-160.0,0.00037239,10]
[336674676,1725010234136,-409.5167953,0.00037254,2]
[336674677,1725010234146,-306.0,0.00037254,2]
[336674678,1725010234155,-405.3451976,0.00037254,2]
[336674679,1725010234165,-415.5434711,0.00037254,2]
[336674680,1725010234174,-409.5167953,0.00037254,2]
[336674681,1725010234183,-409.5167953,0.00037254,2]
[336674682,1725010234193,-409.5167953,0.00037254,2]
[336674683,1725010234202,-409.5167953,0.00037254,2]
[336674684,1725010234212,-408.670633,0.00037254,2]
[336674685,1725010234221,-150.112233,0.000373,8]
[336674686,1725010234231,-1000.0,0.00037359,2]
[336674687,1725010234240,-3206.618,0.00037392,7]
[336674688,1725010234250,-424.885,0.00037392,7]
[336674689,1725010234260,-151.0,0.00037392,7]
[336674690,1725010234270,-151.0,0.00037392,7]
[336674691,1725010234281,-2600.037268,0.00037392,7]
[336674692,1725010234291,-2600.037268,0.00037392,7]
[336674693,1725010234302,-151.0,0.00037392,7]
[336674694,1725010234313,-150.112233,0.000374,9]
[336674695,1725010234322,-500.0,0.00037407,7]
[336674696,1725010234333,-627.83916008,0.00037417,2]
[336674697,1725010234343,-500.0,0.00037432,7]
[336674698,1725010234352,-150.112233,0.000375,8]
[336674699,1725010234362,-500.0,0.00037502,7]
[336674700,1725010234372,-573.32171192,0.00037542,7]
[336674701,1725010234382,-150.112233,0.000376,5]
[336674702,1725010234391,-150.112233,0.000377,5]
[336674703,1725010234401,-150.112233,0.000378,10]
[336674704,1725010234410,-150.112233,0.000379,10]
[336674705,1725010234420,-500.0,0.00037949,7]
[336674706,1725010234430,-627.83916008,0.00037973,2]
[336674707,1725010234439,-69717.3265578,0.0003799,4]
[336674708,1725010234450,-10000.0,0.00038,9]
[336674709,1725010234460,-172.45168665,0.00038,120]
[336674710,1725010234470,-151.0,0.00038,120]
[336674711,1725010234479,-150.112233,0.00038,5]
[336674712,1725010234489,-151.0,0.00038,7]
[336674713,1725010234499,-151.0,0.00038,7]
[336674714,1725010234508,-2615.855794,0.00038,7]
[336674715,1725010234519,-2615.855794,0.00038,7]
[336674716,1725010234528,-151.0,0.00038,7]
[336674717,1725010234538,-151.0,0.00038,7]
[336674718,1725010234547,-500.0,0.0003801,7]
[336674719,1725010234557,-151.0,0.00038055,120]
[336674720,1725010234567,-818.918761,0.00038073,2]
[336674721,1725010234576,-150.112233,0.000381,8]
[336674722,1725010234586,-150.112233,0.000381,10]
[336674723,1725010234596,-1727.44,0.000381,14]
[336674724,1725010234605,-150.0,0.00038112,2]
[336674725,1725010234616,-500.0,0.00038118,7]
[336674726,1725010234625,-500.0,0.0003818,7]
[336674727,1725010234635,-150.112233,0.000383,6]
[336674728,1725010234644,-69717.3265578,0.00038346,4]
[336674729,1725010234653,-151.0,0.00038346,7]
[336674730,1725010234663,-151.0,0.00038346,7]
[336674731,1725010234673,-2600.037268,0.00038346,7]
[336674732,1725010234682,-2600.037268,0.00038346,7]
[336674733,1725010234691,-151.0,0.00038346,7]
[336674734,1725010234701,-160.0,0.00038355,10]
[336674735,1725010234710,-151.0,0.00038356,7]
[336674736,1725010234719,-151.0,0.00038356,7]
[336674737,1725010234729,-151.0,0.00038356,7]
[336674738,1725010234738,-500.0,0.00038356,120]
[336674739,1725010234748,-502.6677539,0.00038356,30]
[336674740,1725010234761,-502.23709377,0.00038356,120]
[336674741,1725010234770,-500.0,0.00038356,120]
[336674742,1725010234780,-151.389956,0.00038356,7]
[336674743,1725010234864,-500.0,0.00038356,120]
[336674744,1725010234884,-500.0,0.00038356,120]
[336674745,1725010234894,-502.05045916,0.00038356,120]
[336674746,1725010234905,-500.0,0.00038356,120]
[336674747,1725010234915,-502.2796137,0.00038356,120]
[336674748,1725010234925,-209.47127129,0.00038356,120]
[336674749,1725010234935,-500.0,0.00038356,120]
[336674750,1725010234944,-500.0,0.00038356,120]
[336674751,1725010234954,-500.0,0.00038356,120]
[336674752,1725010234964,-500.0,0.00038356,120]
[336674753,1725010234974,-500.0,0.00038356,120]
[336674754,1725010234983,-151.0,0.00038356,7]
[336674755,1725010234993,-501.59538685,0.00038356,120]
[336674756,1725010235003,-500.0,0.00038356,120]
[336674757,1725010235012,-500.0,0.00038356,120]
[336674758,1725010235021,-626.58753105,0.00038356,120]
[336674759,1725010235031,-493.02230178,0.00038356,120]
[336674760,1725010235040,-151.0,0.00038356,7]
[336674761,1725010235049,-500.0,0.00038356,120]
[336674762,1725010235059,-500.0,0.00038356,120]
[336674763,1725010235069,-500.0,0.00038356,120]
[336674764,1725010235079,-500.0,0.00038356,120]
[336674765,1725010235088,-500.0,0.00038356,120]
[336674766,1725010235098,-500.0,0.00038356,120]
[336674767,1725010235107,-770.45,0.00038356,120]
[336674768,1725010235116,-151.0,0.00038356,7]
[336674769,1725010235126,-500.0,0.00038356,120]
[336674770,1725010235135,-500.0,0.00038356,120]
[336674771,1725010235145,-500.0,0.00038356,120]
[336674772,1725010235155,-500.0,0.00038356,120]
[336674773,1725010235164,-500.0,0.00038356,120]
[336674774,1725010235174,-292.228276,0.00038356,7]
[336674775,1725010235183,-601.95,0.00038356,120]
[336674776,1725010235193,-500.0,0.00038356,120]
[336674777,1725010235202,-209.7690444,0.00038356,120]
[336674778,1725010235212,-500.0,0.00038356,120]
[336674779,1725010235222,-151.0,0.00038356,7]
[336674780,1725010235231,-238.51353,0.00038356,7]
[336674781,1725010235241,-151.0,0.00038356,7]
[336674782,1725010235250,-151.0,0.00038356,7]
[336674783,1725010235260,-151.0,0.00038356,7]
[336674784,1725010235269,-151.0,0.00038356,7]
[336674785,1725010235278,-500.0,0.00038356,120]
[336674786,1725010235287,-500.0,0.00038356,120]
[336674787,1725010235296,-501.31606788,0.00038356,120]
[336674788,1725010235305,-535.03,0.00038356,120]
[336674789,1725010235315,-500.0,0.00038356,120]
[336674790,1725010235324,-500.0,0.00038356,120]
[336674791,1725010235333,-151.0,0.00038356,7]
[336674792,1725010235343,-151.810112,0.00038356,7]
[336674793,1725010235352,-504.9737604,0.00038356,120]
[336674794,1725010235361,-500.0,0.00038356,120]
[336674795,1725010235370,-503.5435259,0.00038356,120]
[336674796,1725010235380,-500.0,0.00038356,120]
[336674797,1725010235389,-503.85304149,0.00038356,120]
[336674798,1725010235399,-500.0,0.00038356,120]
[336674799,1725010235408,-500.0,0.00038356,120]
[336674800,1725010235418,-517.13966426,0.00038356,120]
[336674801,1725010235427,-500.0,0.00038356,120]
[336674802,1725010235436,-500.0,0.00038356,120]
[336674803,1725010235446,-500.0,0.00038356,120]
[336674804,1725010235455,-583.23115109,0.00038356,120]
[336674805,1725010235464,-500.0,0.00038356,120]
[336674806,1725010235474,-500.0,0.00038356,120]
[336674807,1725010235483,-500.0,0.00038356,120]
[336674808,1725010235492,-500.0,0.00038356,120]
[336674809,1725010235502,-500.0,0.00038356,120]
[336674810,1725010235512,-500.0,0.00038356,120]
[336674811,1725010235521,-500.0,0.00038356,120]
[336674812,1725010235531,-502.07034725,0.00038356,120]
[336674813,1725010235540,-500.0,0.00038356,120]
[336674814,1725010235549,-500.0,0.00038356,120]
[336674815,1725010235559,-500.0,0.00038356,120]
[336674816,1725010235570,-508.25812121,0.00038356,120]
[336674817,1725010235579,-517.66271411,0.00038356,120]
[336674818,1725010235589,-635.3,0.00038356,120]
[336674819,1725010235598,-500.0,0.00038356,120]
[336674820,1725010235608,-500.0,0.00038356,120]
[336674821,1725010235618,-406.2,0.00038356,120]
[336674822,1725010235628,-500.0,0.00038356,120]
[336674823,1725010235637,-151.0,0.00038356,7]
[336674824,1725010235647,-151.0,0.00038356,7]
[336674825,1725010235656,-502.56152815,0.00038356,120]
[336674826,1725010235666,-500.0,0.00038356,120]
[336674827,1725010235675,-500.0,0.00038356,120]
[336674828,1725010235684,-500.0,0.00038356,120]
[336674829,1725010235694,-500.0,0.00038356,120]
[336674830,1725010235703,-521.03313257,0.00038356,120]
[336674831,1725010235712,-500.0,0.00038356,120]
[336674832,1725010235722,-500.0,0.00038356,120]
[336674833,1725010235731,-165.86678323,0.00038356,120]
[336674834,1725010235741,-500.0,0.00038356,120]
[336674835,1725010235750,-505.36543845,0.00038356,120]
[336674836,1725010235763,-151.0,0.00038356,7]
[336674837,1725010235772,-160.732788,0.00038356,7]
[336674838,1725010235781,-151.0,0.00038356,7]
[336674839,1725010235791,-160.732788,0.00038356,7]
[336674840,1725010235799,-500.0,0.00038356,120]
[336674841,1725010235810,-151.0,0.00038356,7]
[336674842,1725010235820,-151.0,0.00038356,7]
[336674843,1725010235829,-160.732788,0.00038356,7]
[336674844,1725010235842,-160.732788,0.00038356,7]
[336674845,1725010235851,-500.0,0.00038356,120]
[336674846,1725010235860,-500.0,0.00038356,120]
[336674847,1725010235869,-500.0,0.00038356,120]
[336674848,1725010235879,-500.0,0.00038356,120]
[336674849,1725010235888,-500.0,0.00038356,120]
[336674850,1725010235897,-500.0,0.00038356,120]
[336674851,1725010235907,-502.6954051,0.00038356,120]
[336674852,1725010235915,-500.0,0.00038356,120]
[336674853,1725010235925,-500.0,0.00038356,120]
[336674854,1725010235934,-500.0,0.00038356,120]
[336674855,1725010235944,-500.0,0.00038356,120]
[336674856,1725010235953,-500.0,0.00038356,120]
[336674857,1725010235962,-500.0,0.00038356,120]
[336674858,1725010235971,-500.0,0.00038356,120]
[336674859,1725010235981,-500.0,0.00038356,120]
[336674860,1725010235990,-500.0,0.00038356,120]
[336674861,1725010235999,-500.0,0.00038356,120]
[336674862,1725010236008,-500.0,0.00038356,120]
[336674863,1725010236018,-500.0,0.00038356,120]
[336674864,1725010236028,-500.0,0.00038356,120]
[336674865,1725010236038,-501.85437594,0.00038356,120]
[336674866,1725010236047,-500.0,0.00038356,120]
[336674867,1725010236056,-500.0,0.00038356,120]
[336674868,1725010236065,-500.0,0.00038356,120]
[336674869,1725010236074,-500.0,0.00038356,120]
[336674870,1725010236083,-500.0,0.00038356,120]
[336674871,1725010236093,-151.0,0.00038356,7]
[336674872,1725010236105,-151.0,0.00038356,7]
[336674873,1725010236115,-500.0,0.00038356,120]
[336674874,1725010236127,-500.0,0.00038356,120]
[336674875,1725010236136,-500.0,0.00038356,120]
[336674876,1725010236145,-500.0,0.00038356,120]
[336674877,1725010236154,-500.0,0.00038356,120]
[336674878,1725010236166,-500.0,0.00038356,120]
[336674879,1725010236175,-500.0,0.00038356,120]
[336674880,1725010236184,-500.0,0.00038356,120]
[336674881,1725010236193,-500.0,0.00038356,120]
[336674882,1725010236202,-151.0,0.00038356,7]
[336674883,1725010236211,-151.0,0.00038356,7]
[336674884,1725010236220,-500.0,0.00038356,120]
[336674885,1725010236230,-500.0,0.00038356,120]
[336674886,1725010236239,-151.0,0.00038356,7]
[336674887,1725010236248,-151.0,0.00038356,7]
[336674888,1725010236258,-500.0,0.00038356,120]
[336674889,1725010236268,-312.87976637,0.00038356,120]
[336674890,1725010236277,-507.15686945,0.00038356,120]
[336674891,1725010236286,-500.0,0.00038356,120]
[336674892,1725010236296,-503.06198965,0.00038356,120]
[336674893,1725010236305,-500.0,0.00038356,120]
[336674894,1725010236314,-500.0,0.00038356,120]
[336674895,1725010236332,-500.0,0.00038356,120]
[336674896,1725010236341,-500.0,0.00038356,120]
[336674897,1725010236351,-500.0,0.00038356,120]
[336674898,1725010236360,-500.0,0.00038356,120]
[336674899,1725010236371,-500.0,0.00038356,120]
[336674900,1725010236382,-502.71099681,0.00038356,120]
[336674901,1725010236392,-500.0,0.00038356,120]
[336674902,1725010236401,-500.0,0.00038356,120]
[336674903,1725010236410,-502.36668592,0.00038356,120]
[336674904,1725010236420,-500.0,0.00038356,120]
[336674905,1725010236429,-500.0,0.00038356,120]
[336674906,1725010236438,-500.0,0.00038356,120]
[336674907,1725010236448,-503.89844926,0.00038356,120]
[336674908,1725010236457,-500.0,0.00038356,120]
[336674909,1725010236466,-500.0,0.00038356,120]
[336674910,1725010236475,-500.0,0.00038356,120]
[336674911,1725010236485,-500.0,0.00038356,120]
[336674912,1725010236494,-500.0,0.00038356,120]
[336674913,1725010236506,-500.0,0.00038356,120]
[336674914,1725010236515,-500.0,0.00038356,120]
[336674915,1725010236524,-500.0,0.00038356,120]
[336674916,1725010236533,-527.10895967,0.00038356,120]
[336674917,1725010236543,-500.0,0.00038356,120]
[336674918,1725010236552,-500.0,0.00038356,120]
[336674919,1725010236561,-500.0,0.00038356,120]
[336674920,1725010236575,-500.0,0.00038356,120]
[336674921,1725010236584,-500.0,0.00038356,120]
[336674922,1725010236593,-500.0,0.00038356,120]
[336674923,1725010236604,-500.0,0.00038356,120]
[336674924,1725010236613,-500.0,0.00038356,120]
[336674925,1725010236623,-500.0,0.00038356,120]
[336674926,1725010236632,-181.28592646,0.00038356,120]
[336674927,1725010236641,-500.0,0.00038356,120]
[336674928,1725010236651,-506.54108213,0.00038356,120]
[336674929,1725010236661,-500.0,0.00038356,120]
[336674930,1725010236670,-259.96,0.00038356,120]
[336674931,1725010236680,-500.0,0.00038356,120]
[336674932,1725010236690,-500.0,0.00038356,120]
[336674933,1725010236702,-500.0,0.00038356,120]
[336674934,1725010236712,-325.61953424,0.00038356,120]
[336674935,1725010236723,-500.0,0.00038356,120]
[336674936,1725010236732,-1811.695138,0.00038356,7]
[336674937,1725010236743,-500.0,0.00038356,120]
[336674938,1725010236755,-1811.695138,0.00038356,7]
[336674939,1725010236766,-500.0,0.00038356,120]
[336674940,1725010236779,-1811.695138,0.00038356,7]
[336674941,1725010236791,-151.0,0.00038356,7]
[336674942,1725010236803,-1811.695138,0.00038356,7]
[336674943,1725010236813,-500.0,0.00038356,120]
[336674944,1725010236822,-502.93001643,0.00038356,120]
[336674945,1725010236836,-500.0,0.00038356,120]
[336674946,1725010236846,-500.0,0.00038356,120]
[336674947,1725010236855,-511.12900496,0.00038356,120]
[336674948,1725010236866,-151.0,0.00038356,7]
[336674949,1725010236875,-151.0,0.00038356,7]
[336674950,1725010236884,-151.0,0.00038356,7]
[336674951,1725010236894,-151.0,0.00038356,7]
[336674952,1725010236903,-227.60252784,0.00038356,120]
[336674953,1725010236989,-151.0,0.00038356,7]
[336674954,1725010237000,-502.38028933,0.00038356,120]
[336674955,1725010237010,-335.64522089,0.00038356,120]
[336674956,1725010237019,-232.429756,0.00038356,7]
[336674957,1725010237027,-151.0,0.00038356,7]
[336674958,1725010237037,-151.0,0.00038356,7]
[336674959,1725010237046,-500.0,0.00038356,120]
[336674960,1725010237055,-500.0,0.00038356,120]
[336674961,1725010237064,-500.0,0.00038356,120]
[336674962,1725010237073,-500.0,0.00038356,120]
[336674963,1725010237082,-500.0,0.00038356,120]
[336674964,1725010237092,-500.0,0.00038356,120]
[336674965,1725010237101,-500.0,0.00038356,120]
[336674966,1725010237110,-500.0,0.00038356,120]
[336674967,1725010237119,-500.0,0.00038356,120]
[336674968,1725010237128,-500.0,0.00038356,120]
[336674969,1725010237138,-500.0,0.00038356,120]